bitfinex/quotes_ETHUSD_20250318
["timestamp","ask_amount","ask_price","bid_price","bid_amount"]
[1742280695660,5.039,1901.3,1901.2,6.05593]
[1742280695957,3.0,1901.4,1901.3,5.25955]
[1742280696258,3.0,1901.4,1901.3,6.391098]
[1742280696883,5.039,1901.6,1901.5,6.0112]
[1742280697078,5.111456,1901.8,1901.7,5.25845]
[1742280697610,8.111456,1901.8,1901.7,5.25845]
[1742280703141,8.111456,1901.8,1901.6,5.2586]
[1742280703343,3.7994,1901.7,1901.4,5.25918]
[1742280703547,8.111456,1901.5,1901.4,5.25918]
[1742280704667,3.0,1901.5,1901.4,5.25918]
[1742280705057,3.0,1901.5,1901.4,6.07688]
[1742280706676,3.0,1901.5,1901.4,5.25918]
[1742280707594,3.0,1901.5,1901.3,5.25952]
[1742280707881,5.111456,1901.4,1901.3,10.51891]
[1742280708280,5.111456,1901.4,1901.3,5.25939]
[1742280710262,3.0,1901.5,1901.4,5.25928]
[1742280713068,8.111456,1901.5,1901.4,5.25928]
[1742280713962,8.111456,1901.5,1901.4,6.04738]
[1742280714168,3.0,1901.5,1901.4,7.178057]
[1742280714496,3.0,1901.5,1901.4,5.25928]
[1742280714497,8.111456,1901.5,1901.4,5.25928]
[1742280715895,8.111456,1901.5,1901.3,5.25939]
[1742280716677,3.0,1901.5,1901.3,5.25938]
[1742280716993,0.7939,1901.4,1901.2,10.51945]
[1742280717194,8.031,1901.3,1901.1,10.52006]
[1742280717394,0.7626,1901.2,1901.0,5.26037]
[1742280717630,3.7626,1901.2,1900.9,5.26063]
[1742280717792,3.7626,1901.2,1900.9,5.2605]
[1742280718099,3.7626,1901.2,1901.0,5.2603]
[1742280718484,8.111456,1901.1,1901.0,10.52054]
[1742280718691,8.111456,1901.1,1901.0,5.26024]
[1742280720522,13.152456,1901.1,1901.0,5.26024]
[1742280721168,8.111456,1901.1,1901.0,5.26024]
[1742280723606,13.150456,1901.3,1901.2,5.25983]
[1742280723921,1.0783103,1901.7,1901.2,1.051982]
[1742280724085,1.0783103,1901.7,1901.6,5.25872]
[1742280724286,3.0,1901.7,1901.6,5.25872]
[1742280724891,6.9098103,1901.8,1901.6,10.51744]
[1742280725174,5.111456,1901.7,1901.6,5.25872]
[1742280725398,8.111456,1901.7,1901.6,5.25872]
[1742280726276,0.8051,1902.1,1902.0,5.25762]
[1742280726475,13.963556,1902.1,1902.0,5.25762]
[1742280727763,8.916556,1902.1,1902.0,5.25762]
[1742280727971,13.155456,1902.1,1902.0,5.25762]
[1742280728471,5.111456,1902.1,1902.0,5.25762]
[1742280728681,11.067,1902.3,1902.2,5.25707]
[1742280728891,0.7675,1902.5,1902.3,5.25667]
[1742280729176,10.158456,1902.4,1902.3,5.25667]
[1742280729335,5.047,1902.4,1902.3,5.25667]
[1742280729535,11.131456,1902.6,1902.5,5.25624]
[1742280729736,10.160456,1902.6,1902.5,5.25624]
[1742280729938,13.160456,1902.6,1902.5,5.25624]
[1742280730181,5.111456,1902.6,1902.5,5.25624]
[1742280730337,5.111456,1902.6,1902.5,6.04004]
[1742280730886,10.166456,1902.8,1902.7,5.25568]
[1742280731186,5.055,1902.8,1902.7,5.25568]
[1742280731340,3.582054,1902.7,1902.5,5.25623]
[1742280731555,3.7808,1902.7,1902.6,5.25596]
[1742280731760,8.892256,1902.7,1902.6,5.25596]
[1742280731959,5.111456,1902.7,1902.6,5.25596]
[1742280732407,8.111456,1902.7,1902.6,5.25596]
[1742280733793,3.0,1902.7,1902.6,6.07086]
[1742280734014,3.0,1902.7,1902.6,7.203569]
[1742280734177,8.111456,1902.7,1902.6,7.203569]
[1742280734499,23.300456,1902.9,1902.8,5.25541]
[1742280734671,8.111456,1902.9,1902.8,5.25541]
[1742280735108,5.111456,1902.9,1902.8,5.25541]
[1742280735290,11.09,1903.1,1902.8,5.25541]
[1742280735291,5.111456,1903.1,1903.0,6.05056]
[1742280735813,5.111456,1903.1,1903.0,5.25486]
[1742280736597,8.111456,1903.1,1903.0,5.25486]
[1742280736973,3.0,1903.1,1903.0,5.25486]
[1742280737209,5.07,1903.3,1903.2,5.2543]
[1742280738218,5.111456,1903.3,1903.2,5.2543]
[1742280738431,10.180456,1903.3,1903.2,5.2543]
[1742280739040,13.180456,1903.3,1903.2,5.2543]
[1742280739525,5.111456,1903.3,1903.2,5.2543]
[1742280740096,8.111456,1903.3,1903.2,5.2543]
[1742280740600,5.067,1903.4,1903.3,5.25403]
[1742280740845,11.091,1903.5,1903.4,5.25375]
[1742280741138,19.202456,1903.5,1903.4,5.25375]
[1742280741638,3.0,1903.5,1903.4,5.25375]
[1742280741790,5.071,1903.7,1903.6,5.2532]
[1742280741996,28.361456,1903.8,1903.7,5.25292]
[1742280745138,23.25,1903.8,1903.7,5.25292]
[1742280745307,8.111456,1904.1,1904.0,5.2521]
[1742280745936,5.067,1904.2,1904.1,5.25182]
[1742280746216,10.178456,1904.2,1904.1,5.25182]
[1742280746397,8.25182,1904.1,1904.0,5.2521]
[1742280746611,3.0,1904.1,1904.0,5.2521]
[1742280746811,8.111456,1904.1,1904.0,5.2521]
[1742280747844,8.111456,1904.1,1903.9,5.25235]
[1742280748012,8.111456,1904.1,1904.0,5.2521]
[1742280749941,3.0,1904.0,1903.8,5.25259]
[1742280750129,5.895356,1903.9,1903.7,10.50574]
[1742280750310,10.183456,1903.8,1903.7,10.50574]
[1742280750522,5.072,1903.8,1903.7,10.50574]
[1742280750719,10.183456,1903.8,1903.7,10.50574]
[1742280751118,5.072,1903.8,1903.7,10.50574]
[1742280751333,10.183456,1903.8,1903.7,10.50574]
[1742280752359,13.183456,1903.8,1903.7,5.25284]
[1742280752539,13.183456,1903.8,1903.6,5.25311]
[1742280752540,13.980156,1903.8,1903.6,5.25311]
[1742280752754,5.111456,1903.7,1903.6,5.25311]
[1742280753950,10.50659,1903.5,1903.4,5.25372]
[1742280754120,5.902256,1903.5,1903.4,5.25372]
[1742280754523,5.902256,1903.5,1903.2,5.2543]
[1742280754725,5.111456,1903.3,1903.2,5.2543]
[1742280756155,5.081,1903.4,1903.3,5.25403]
[1742280756461,10.192456,1903.4,1903.3,5.25403]
[1742280756631,9.02,1903.6,1903.5,5.25348]
[1742280756835,19.209456,1903.6,1903.4,10.50724]
[1742280757146,5.111456,1903.5,1903.4,10.50724]
[1742280758929,3.0,1903.4,1903.3,5.254]
[1742280760446,3.0,1903.4,1903.3,6.0573]
[1742280760728,10.185456,1903.5,1903.4,5.25375]
[1742280763460,10.969656,1903.5,1903.4,5.25375]
[1742280764356,5.074,1903.5,1903.4,5.25375]
[1742280764661,10.185456,1903.5,1903.4,5.25375]
[1742280765336,5.074,1903.5,1903.4,5.25375]
[1742280765657,10.185456,1903.5,1903.4,5.25375]
[1742280766236,3.0,1903.7,1903.6,5.2532]
[1742280767529,5.111456,1903.9,1903.8,5.25265]
[1742280767731,10.183456,1903.9,1903.8,5.25265]
[1742280770253,21.169,1904.0,1903.9,5.25237]
[1742280770450,31.354456,1904.0,1903.9,5.25237]
[1742280772163,3.0,1904.0,1903.9,6.06497]
[1742280772363,3.0,1904.0,1903.9,7.196732]
[1742280773066,10.189456,1904.1,1904.0,5.2521]
[1742280778774,5.111456,1904.1,1904.0,5.2521]
[1742280784083,13.179456,1904.2,1904.1,5.25182]
[1742280785551,8.111456,1904.2,1904.1,5.25182]
[1742280785763,8.111456,1904.2,1904.1,6.385452]
[1742280786161,3.0,1904.2,1904.1,6.385452]
[1742280786361,5.111456,1904.4,1904.3,5.25127]
[1742280786587,8.111456,1904.4,1904.3,5.25127]
[1742280786785,13.169456,1904.4,1904.3,5.25127]
[1742280786963,3.0,1904.4,1904.3,6.30154]
[1742280787167,29.244,1904.6,1904.5,5.25072]
[1742280787491,26.224,1904.6,1904.5,5.25072]
[1742280787655,26.225,1904.6,1904.5,5.25072]
[1742280788590,8.058,1904.6,1904.5,5.25072]
[1742280788789,5.058,1904.6,1904.5,6.30088]
[1742280789085,10.168456,1904.8,1904.7,5.25017]
[1742280789390,13.168456,1904.8,1904.7,5.25017]
[1742280789766,10.168456,1904.8,1904.7,5.25017]
[1742280790569,13.168456,1904.8,1904.7,5.25017]
[1742280798498,3.0,1904.8,1904.7,6.06937]
[1742280798699,5.051,1904.9,1904.8,5.24989]
[1742280798902,8.051,1904.9,1904.8,5.24989]
[1742280799211,8.051,1904.9,1904.7,5.25017]
[1742280799397,8.051,1904.9,1904.4,5.2509]
[1742280799398,5.25017,1904.7,1904.4,5.2509]
[1742280799704,5.111456,1904.5,1904.4,5.2509]
[1742280799882,10.162456,1904.5,1904.4,5.2509]
[1742280801368,13.949556,1904.5,1904.4,5.2509]
[1742280801570,3.0,1904.4,1904.2,10.50296]
[1742280801903,5.111456,1904.3,1904.2,5.25143]
[1742280803391,5.111456,1904.3,1904.1,10.50337]
[1742280803896,5.111456,1904.3,1904.2,5.25154]
[1742280805115,8.111456,1904.4,1904.3,5.25127]
[1742280806494,8.111456,1904.4,1904.2,5.25154]
[1742280806693,8.111456,1904.4,1904.2,5.25144]
[1742280806897,8.111456,1904.4,1904.3,5.25127]
[1742280807422,8.111456,1904.4,1904.2,5.2514]
[1742280808090,8.111456,1904.4,1904.1,5.2518]
[1742280808091,14.44116252,1904.4,1904.1,5.2518]
[1742280808292,5.111456,1904.2,1903.9,5.2522]
[1742280808615,5.111456,1904.0,1903.9,5.2522]
[1742280813819,8.047,1904.1,1904.0,5.2521]
[1742280816135,3.0,1904.1,1904.0,5.2521]
[1742280816295,3.0,1904.1,1904.0,7.09783]
[1742280816491,5.111456,1904.4,1904.1,5.25182]
[1742280816723,12.11595525,1904.5,1904.4,5.25099]
[1742280816931,15.11595525,1904.5,1904.4,5.25099]
[1742280817225,10.08395525,1904.5,1904.4,5.25099]
[1742280817394,5.037,1904.5,1904.4,6.301204]
[1742280817723,5.111456,1904.6,1904.4,6.301204]
[1742280817724,3.0,1904.6,1904.5,5.25072]
[1742280817957,23.273456,1904.7,1904.6,5.25044]
[1742280818316,26.273456,1904.7,1904.6,5.25044]
[1742280819036,10.161456,1904.8,1904.7,5.25017]
[1742280819431,5.111456,1904.8,1904.7,5.25017]
[1742280822047,8.059,1904.9,1904.8,5.24989]
[1742280822230,13.170456,1904.9,1904.8,5.24989]
[1742280823849,13.170456,1904.9,1904.7,5.25006]
[1742280824052,13.170456,1904.9,1904.7,5.25005]
[1742280824257,13.170456,1904.9,1904.7,5.25013]
[1742280824733,24.440146,1904.9,1904.6,5.2504]
[1742280825034,5.111456,1904.7,1904.6,5.2504]
[1742280828060,8.111456,1904.7,1904.6,5.2504]
[1742280828261,8.889756,1904.7,1904.5,5.2506]
[1742280828468,8.889756,1904.7,1904.5,10.50118]
[1742280828862,8.889756,1904.7,1904.4,5.25096]
[1742280829176,3.7783,1904.7,1904.5,5.25065]
[1742280829462,3.7783,1904.7,1904.2,5.25137]
[1742280829463,8.25053,1904.6,1904.2,5.25137]
[1742280829756,8.25053,1904.6,1904.1,5.2518]
[1742280829757,3.0,1904.4,1904.1,5.2518]
[1742280829940,3.0,1904.4,1903.9,0.756]
[1742280829941,5.111456,1904.2,1903.9,6.00829]
[1742280830124,5.111456,1904.2,1904.1,5.25182]
[1742280832061,5.111456,1904.2,1904.0,5.2521]
[1742280832275,8.037,1904.1,1904.0,5.25194]
[1742280837677,3.0,1904.1,1904.0,5.25194]
[1742280837877,3.0,1904.1,1904.0,6.302371]
[1742280838083,5.027,1904.2,1904.1,5.25182]
[1742280838392,8.111456,1904.4,1904.3,5.25127]
[1742280838581,13.142456,1904.4,1904.3,5.25127]
[1742280843638,13.142456,1904.4,1904.2,10.50289]
[1742280843916,13.142456,1904.4,1904.2,5.25142]
[1742280844131,13.142456,1904.4,1904.2,5.25138]
[1742280844521,10.965556,1904.4,1904.2,5.25138]
[1742280845005,10.965556,1904.4,1904.2,10.50281]
[1742280845201,10.965556,1904.4,1904.2,5.25138]
[1742280845517,10.965556,1904.4,1904.2,5.25136]
[1742280845885,10.965556,1904.4,1904.3,5.25127]
[1742280846440,10.965556,1904.4,1904.2,5.25136]
[1742280846745,10.965556,1904.4,1904.2,10.50273]
[1742280847038,10.965556,1904.4,1904.2,5.25136]
[1742280847487,12.00423398,1904.4,1904.2,5.25136]
[1742280847688,10.965556,1904.4,1904.2,5.25136]
[1742280850537,10.965556,1904.4,1904.1,5.25177]
[1742280850704,5.111456,1904.2,1904.0,5.25206]
[1742280851620,3.0,1904.1,1904.0,10.50401]
[1742280852524,3.0,1904.1,1904.0,5.25195]
[1742280852724,9.0079,1904.1,1903.8,5.25259]
[1742280852929,3.0,1903.9,1903.8,5.25259]
[1742280853144,3.0,1903.9,1903.7,5.25281]
[1742280853348,5.111456,1903.8,1903.7,5.25281]
[1742280853547,8.111456,1903.8,1903.7,5.25281]
[1742280855836,3.0,1903.8,1903.7,6.06041]
[1742280856554,3.0,1903.8,1903.7,7.191759]
[1742280856849,8.026,1903.9,1903.8,5.25265]
[1742280857421,13.137456,1903.9,1903.8,5.25265]
[1742280858343,13.925256,1903.9,1903.7,5.25281]
[1742280859153,13.925256,1903.9,1903.6,5.25315]
[1742280859350,5.111456,1903.7,1903.6,10.50622]
[1742280861017,5.111456,1903.7,1903.6,5.25307]
[1742280861356,3.0,1903.6,1903.5,5.25342]
[1742280861533,5.111456,1903.6,1903.5,5.25342]
[1742280862740,5.111456,1903.6,1903.4,5.25367]
[1742280862946,5.111456,1903.5,1903.4,5.25367]
[1742280863156,10.137456,1903.5,1903.4,5.25367]
[1742280863969,3.0,1903.4,1903.2,5.25429]
[1742280864270,5.111456,1903.3,1903.2,5.25429]
[1742280872175,5.111456,1903.3,1903.2,6.00479]
[1742280875027,8.027,1903.4,1903.3,5.25403]
[1742280876524,8.027,1903.4,1903.3,5.25403]
[1742280877318,3.0,1903.2,1903.1,5.25447]
[1742280877517,8.111456,1903.2,1903.1,5.25447]
[1742280878450,8.111456,1903.2,1903.0,10.50952]
[1742280878625,8.111456,1903.2,1903.1,5.25458]
[1742280884059,5.111456,1903.2,1903.1,5.25458]
[1742280887946,5.111456,1903.2,1903.0,5.2547]
[1742280888390,5.111456,1903.2,1903.0,10.50946]
[1742280888548,5.111456,1903.2,1903.0,5.2547]
[1742280888948,3.0,1903.1,1903.0,5.2547]
[1742280889570,3.0,1903.1,1902.9,5.25509]
[1742280889749,10.138456,1903.0,1902.9,5.25509]
[1742280891289,5.027,1903.0,1902.9,5.25509]
[1742280893881,3.0,1903.0,1902.9,5.25509]
[1742280894049,8.028,1903.0,1902.9,5.25509]
[1742280902495,8.857,1903.0,1902.9,5.25509]
[1742280904123,8.857,1903.0,1902.8,5.25537]
[1742280904329,5.111456,1902.9,1902.7,10.5111]
[1742280904620,5.111456,1902.9,1902.7,5.25553]
[1742280904779,8.111456,1902.9,1902.8,5.25541]
[1742280906530,8.111456,1902.9,1902.7,5.25553]
[1742280906888,8.111456,1902.9,1902.6,5.25576]
[1742280907201,8.940456,1902.7,1902.6,5.25576]
[1742280911601,3.0,1902.6,1902.4,5.25651]
[1742280911801,0.7689,1902.4,1902.3,5.25678]
[1742280912004,0.7689,1902.4,1902.2,5.25702]
[1742280912208,3.0,1902.3,1902.1,5.25731]
[1742280912407,5.111456,1902.2,1902.1,5.25731]
[1742280912787,8.111456,1902.2,1902.0,10.53883312]
[1742280913010,5.028,1902.1,1902.0,5.28125312]
[1742280917704,5.028,1902.1,1902.0,6.06765312]
[1742280918214,5.028,1902.3,1902.2,5.25707]
[1742280918419,11.048,1902.4,1902.3,0.7895]
[1742280918624,14.048,1902.4,1902.3,6.04629]
[1742280921633,8.028,1902.4,1902.3,6.04629]
[1742280924942,3.0,1902.4,1902.3,6.04629]
[1742280925245,3.0,1902.4,1902.3,7.176626]
[1742280925942,8.029,1902.6,1902.5,5.25624]
[1742280927312,8.028,1902.6,1902.5,5.25624]
[1742280930471,8.8338,1902.6,1902.5,5.25624]
[1742280933451,8.028,1902.6,1902.5,5.25624]
[1742280935473,3.0,1902.6,1902.5,5.25624]
[1742280936145,18.175,1902.9,1902.8,5.25541]
[1742280936474,5.028,1902.9,1902.8,5.25541]
[1742280936653,8.028,1902.9,1902.8,5.25541]
[1742280937050,5.111456,1903.2,1903.1,5.25458]
[1742280937372,11.048,1903.4,1903.3,5.25403]
[1742280937538,5.028,1903.4,1903.3,5.25403]
[1742280937970,8.028,1903.4,1903.3,5.25403]
[1742280940081,3.0,1903.4,1903.3,5.25403]
[1742280940282,8.027,1903.4,1903.3,5.25403]
[1742280941250,8.027,1903.4,1903.3,7.089252]
[1742280943586,13.138456,1903.4,1903.3,6.304852]
[1742280944383,8.027,1903.4,1903.3,6.304852]
[1742280944957,8.027,1903.4,1903.3,5.25403]
[1742280945773,3.0,1903.3,1903.2,10.50834]
[1742280945980,8.111456,1903.3,1903.2,10.50834]
[1742280946179,8.111456,1903.3,1903.2,5.25415]
[1742280947561,8.111456,1903.3,1903.1,5.2545]
[1742280948290,8.111456,1903.3,1903.1,10.50887]
[1742280948588,8.111456,1903.3,1903.2,5.2543]
[1742280952294,8.111456,1903.3,1903.1,5.25437]
[1742280953596,8.111456,1903.3,1903.2,5.2543]
[1742280954482,8.111456,1903.3,1903.1,5.25437]
[1742280955591,8.111456,1903.3,1903.0,5.2548]
[1742280955785,5.941656,1903.1,1903.0,5.2548]
[1742280958894,5.111456,1903.1,1903.0,5.2548]
[1742280959995,8.111456,1903.1,1903.0,5.2548]
[1742280962496,3.0,1903.1,1903.0,5.2548]
[1742280963198,8.111456,1903.1,1903.0,5.2548]
[1742280964200,5.111456,1903.1,1903.0,5.2548]
[1742280965002,5.025,1903.2,1903.1,5.25458]
[1742280967001,5.7752,1903.2,1903.1,5.25458]
[1742280967507,5.025,1903.2,1903.1,5.25458]
[1742280969917,3.0,1903.3,1903.2,5.2543]
[1742280970081,3.0,1903.3,1903.2,6.0386]
[1742280970276,3.0,1903.4,1903.3,5.25403]
[1742280970520,1.47403146,1903.5,1903.4,5.25375]
[1742280970727,18.179,1903.6,1903.5,5.25348]
[1742280970888,26.204,1903.6,1903.5,5.25348]
[1742280972883,26.203,1903.6,1903.5,5.25348]
[1742280973137,0.7502,1903.9,1903.8,5.25265]
[1742280973413,0.7502,1903.9,1903.6,5.25319]
[1742280973414,7.020901,1903.8,1903.6,5.25319]
[1742280973581,8.111456,1903.7,1903.6,5.25319]
[1742280974813,8.86579863,1903.7,1903.5,5.25347]
[1742280974991,3.7502,1903.6,1903.4,5.25373]
[1742280975196,13.135456,1903.5,1903.4,5.25373]
[1742280980489,3.0,1903.4,1903.2,5.25427]
[1742280980711,8.111456,1903.3,1903.2,5.25427]
[1742280982628,3.0,1903.3,1903.2,5.25427]
[1742280983921,3.0,1903.3,1903.2,6.05937]
[1742280984121,3.0,1903.3,1903.2,5.25427]
[1742280985716,3.0,1903.3,1903.2,6.01727]
[1742280987022,13.135456,1903.4,1903.3,5.25403]
[1742280987226,8.024,1903.4,1903.3,5.25403]
[1742280987523,3.0,1903.4,1903.3,5.25403]
[1742280989627,9.02,1903.7,1903.6,5.2532]
[1742280989925,14.131456,1903.7,1903.6,5.2532]
[1742280990727,23.193,1903.8,1903.7,5.25292]
[1742280991229,26.193,1903.8,1903.7,5.25292]
[1742280992497,26.58361964,1903.8,1903.7,5.25292]
[1742280994834,8.023,1903.8,1903.7,5.25292]
[1742280996732,8.41554565,1903.8,1903.7,5.25292]
[1742280998469,9.22114565,1903.8,1903.7,5.25292]
[1742281002268,8.023,1903.8,1903.7,5.25292]
[1742281005043,8.7894,1903.8,1903.7,5.25292]
[1742281006083,9.17543434,1903.8,1903.7,5.25292]
[1742281011076,9.17543434,1903.8,1903.6,5.25308]
[1742281011077,3.0,1903.7,1903.6,5.25308]
[1742281011284,8.111456,1903.7,1903.6,5.25308]
[1742281014956,8.022,1903.7,1903.6,6.01068]
[1742281015861,19.51275596,1904.1,1904.0,5.2521]
[1742281016061,32.38076199,1904.1,1904.0,5.2521]
[1742281016562,31.302456,1904.1,1904.0,5.2521]
[1742281019495,31.68901565,1904.1,1904.0,5.2521]
[1742281021100,3.8004,1904.0,1903.9,5.25225]
[1742281022367,3.8004,1904.0,1903.9,5.25237]
[1742281023799,3.0,1904.0,1903.9,5.25237]
[1742281026199,8.111456,1904.0,1903.9,5.25237]
[1742281026670,3.0,1904.0,1903.9,6.08457]
[1742281027274,10.132456,1904.3,1904.2,5.25154]
[1742281027497,13.132456,1904.3,1904.2,5.25154]
[1742281027896,5.021,1904.3,1904.2,6.02004]
[1742281028091,8.021,1904.3,1904.2,6.02004]
[1742281030581,3.0,1904.3,1904.2,7.147226]
[1742281033410,8.111456,1904.3,1904.2,5.25154]
[1742281036313,3.0,1904.3,1904.2,6.02464]
[1742281036808,3.0,1904.3,1904.2,5.25154]
[1742281040782,3.0,1904.2,1904.1,5.25169]
[1742281041082,8.111456,1904.2,1904.1,5.25169]
[1742281044133,5.111456,1904.2,1904.1,5.25169]
[1742281044828,3.0,1904.3,1904.2,5.25154]
[1742281045034,13.130456,1904.3,1904.2,5.25154]
[1742281045803,10.130456,1904.3,1904.2,5.25154]
[1742281050733,8.25154,1904.2,1904.1,10.50339]
[1742281050941,3.0,1904.2,1904.1,10.50339]
[1742281055146,3.0,1904.2,1904.1,5.25169]
[1742281059468,8.018,1904.2,1904.1,5.25169]
[1742281068696,8.8132,1904.2,1904.1,5.25169]
[1742281071193,8.018,1904.2,1904.1,5.25169]
[1742281075979,8.018,1904.2,1904.0,10.50406]
[1742281076209,5.111456,1904.1,1904.0,10.50406]
[1742281078426,8.018,1904.2,1904.1,5.25182]
[1742281078582,13.129456,1904.2,1904.1,5.25182]
[1742281080723,13.129456,1904.2,1904.0,5.25197]
[1742281080724,8.25182,1904.1,1904.0,5.25197]
[1742281080924,3.0,1904.1,1903.9,5.25235]
[1742281081137,5.111456,1904.0,1903.9,5.25235]
[1742281082325,3.0,1904.1,1904.0,5.2521]
[1742281082533,8.111456,1904.1,1904.0,5.2521]
[1742281083331,3.0,1904.1,1904.0,5.2521]
[1742281083544,6.05961721,1904.1,1904.0,5.2521]
[1742281087722,6.05961721,1904.1,1904.0,6.302545]
[1742281088427,3.0,1904.1,1904.0,6.302545]
[1742281088629,1.860928,1904.5,1904.0,6.302545]
[1742281088630,11.07561721,1904.3,1904.2,5.25142]
[1742281089936,8.016,1904.3,1904.2,5.25142]
[1742281090244,11.07561721,1904.3,1904.2,5.25142]
[1742281103670,6.05961721,1904.3,1904.2,5.25142]
[1742281103869,11.07461721,1904.3,1904.2,5.25142]
[1742281106650,11.07461721,1904.3,1904.1,10.50341]
[1742281106862,3.05961721,1904.2,1904.1,10.50341]
[1742281108089,6.05961721,1904.2,1904.1,5.2517]
[1742281108305,6.05961721,1904.2,1904.0,5.25203]
[1742281108306,6.0327,1904.1,1904.0,5.25203]
[1742281108515,6.84061721,1904.1,1904.0,5.25203]
[1742281108786,6.84061721,1904.1,1903.9,10.50462]
[1742281108957,6.84061721,1904.1,1903.8,5.25253]
[1742281108958,6.05961721,1904.0,1903.8,5.25253]
[1742281109158,8.07461721,1903.9,1903.8,5.25253]
[1742281109563,3.0,1903.8,1903.7,10.50568]
[1742281110170,6.05961721,1903.8,1903.7,10.50568]
[1742281110989,6.05961721,1903.8,1903.7,5.2528]
[1742281111391,9.11923442,1903.8,1903.6,5.25304]
[1742281111561,6.05961721,1903.7,1903.5,10.50683]
[1742281111762,3.05961721,1903.6,1903.5,5.25337]
[1742281113291,5.10155904,1903.6,1903.5,5.25337]
[1742281119383,8.10155904,1903.6,1903.5,5.25337]
[1742281119967,3.0,1903.5,1903.4,5.25363]
[1742281120172,8.015,1903.5,1903.4,5.25363]
[1742281120567,8.015,1903.5,1903.3,5.254]
[1742281120783,5.10155904,1903.4,1903.3,10.50794]
[1742281123503,5.50160959,1903.4,1903.3,10.50794]
[1742281125515,5.50160959,1903.4,1903.3,5.25394]
[1742281125982,8.50160959,1903.4,1903.3,5.25394]
[1742281127881,9.55752918,1903.4,1903.3,5.25394]
[1742281132214,8.50160959,1903.4,1903.3,5.25394]
[1742281135131,6.46180853,1903.4,1903.3,5.25394]
[1742281135730,6.46180853,1903.4,1903.2,5.25418]
[1742281135731,3.0,1903.3,1903.2,5.25418]
[1742281135915,6.06175798,1903.3,1903.2,10.5084]
[1742281136241,6.06175798,1903.3,1903.1,5.25456]
[1742281136542,9.87781596,1903.2,1903.0,5.25474]
[1742281136837,8.07675798,1903.1,1903.0,5.25474]
[1742281139130,10.11965042,1903.1,1903.0,5.25474]
[1742281148263,11.16871604,1903.1,1903.0,5.25474]
[1742281150128,11.16871604,1903.1,1902.9,10.51006]
[1742281150362,9.046269,1902.9,1902.8,5.2552]
[1742281150528,3.0,1903.0,1902.9,5.25513]
[1742281159895,6.0625269,1903.0,1902.9,5.25513]
[1742281160371,3.0,1903.0,1902.9,5.25513]
[1742281161174,6.0625269,1903.0,1902.9,5.25513]
[1742281165775,3.0,1903.0,1902.9,5.25513]
[1742281166766,6.0625269,1903.0,1902.9,5.25513]
[1742281168794,3.0,1903.0,1902.9,5.25513]
[1742281170897,4.04906562,1903.1,1903.0,5.25486]
[1742281171199,7.11159252,1903.1,1903.0,5.25486]
[1742281175491,6.0625269,1903.1,1903.0,5.25486]
[1742281180223,6.8351269,1903.1,1903.0,5.25486]
[1742281182324,6.8351269,1903.1,1902.9,5.255]
[1742281182629,6.0625269,1903.0,1902.9,5.255]
[1742281185531,6.0625269,1903.0,1902.8,5.25527]
[1742281185833,3.0625269,1902.9,1902.8,5.25527]
[1742281186030,3.3263928,1902.9,1902.8,5.25527]
[1742281186628,3.0625269,1902.9,1902.8,5.25527]
[1742281186996,7.22260589,1902.9,1902.7,5.25563]
[1742281187228,6.0625269,1902.8,1902.7,5.25563]
[1742281187429,11.0745269,1902.8,1902.7,5.25563]
[1742281195166,3.32465674,1903.3,1903.1,5.25436]
[1742281195382,11.0735269,1903.2,1903.1,5.25436]
[1742281196163,6.0625269,1903.2,1903.1,5.25436]
[1742281197571,9.1250538,1903.2,1903.1,5.25436]
[1742281200673,6.0625269,1903.2,1903.1,5.25436]
[1742281201284,19.39885055,1903.4,1903.3,5.25403]
[1742281201490,21.63657745,1903.4,1903.3,5.25403]
[1742281201791,8.206,1903.3,1903.2,5.25418]
[1742281202082,6.8873269,1903.3,1903.2,5.25418]
[1742281202300,3.0,1903.3,1903.2,5.2543]
[1742281202587,6.0625269,1903.3,1903.2,5.2543]
[1742281204194,6.0625269,1903.3,1903.1,10.50893]
[1742281204195,5.2543,1903.2,1903.1,10.50893]
[1742281204353,9.1250538,1903.2,1903.1,5.25446]
[1742281205067,9.1250538,1903.2,1903.0,10.50956]
[1742281205277,6.0625269,1903.2,1903.1,5.25458]
[1742281205474,9.1250538,1903.2,1903.1,5.25458]
[1742281206251,9.1250538,1903.2,1902.8,6.0525]
[1742281206252,0.8158,1903.0,1902.9,5.25499]
[1742281206590,11.8883269,1903.0,1902.9,5.25499]
[1742281207188,13.93160113,1903.0,1902.9,5.25499]
[1742281207663,13.11580113,1903.0,1902.9,5.25499]
[1742281209591,8.25499,1902.9,1902.6,5.25576]
[1742281209764,3.0,1902.9,1902.8,5.25541]
[1742281210280,3.0,1902.9,1902.7,5.25559]
[1742281210474,3.0,1902.9,1902.7,10.51112]
[1742281210866,3.0,1902.9,1902.7,5.25553]
[1742281211188,8.10580113,1902.8,1902.7,10.51106]
[1742281212197,8.10580113,1902.8,1902.7,5.25553]
[1742281212481,8.10580113,1902.8,1902.6,10.51177]
[1742281212804,8.88020113,1902.8,1902.6,5.25584]
[1742281213298,3.0,1902.7,1902.5,10.51235]
[1742281213595,10.11580113,1902.6,1902.5,5.25613]